bitfinex-derivatives/quotes_SOLF0:USTF0_20250309
["timestamp","ask_amount","ask_price","bid_price","bid_amount"]
[1741529963844,7.4701,133.89,133.88,0.05263083]
[1741529964043,0.05508404,133.91,133.82,256.87503207]
[1741529964244,33.72763013,133.91,133.82,254.99273207]
[1741529964942,33.72763013,133.91,133.82,30.93273207]
[1741529965140,0.05196646,133.88,133.82,30.93273207]
[1741529965341,33.68,133.87,133.85,0.04765036]
[1741529966140,33.68,133.87,133.77,30.93273207]
[1741529966141,37.42,133.87,133.77,30.93273207]
[1741529966441,1.9581,133.86,133.77,30.93273207]
[1741529966644,7.4749,133.81,133.77,30.93273207]
[1741529966840,33.66,133.82,133.77,30.93273207]
[1741529967038,0.04838318,133.81,133.78,0.05161314]
[1741529967741,0.04838318,133.81,133.8,41.20273013]
[1741529968046,33.68,133.88,133.8,257.82763013]
[1741529968240,7.4724,133.85,133.8,257.82763013]
[1741529968440,33.68,133.88,133.8,257.82763013]
[1741529968747,7.4725,133.85,133.8,257.82763013]
[1741529969059,0.05488399,133.84,133.81,0.0499379]
[1741529970041,33.73488399,133.84,133.81,0.0499379]
[1741529970637,41.20818399,133.84,133.81,0.0499379]
[1741529970840,33.73488399,133.84,133.81,0.0499379]
[1741529971036,41.20788399,133.84,133.81,0.0499379]
[1741529971946,33.73488399,133.84,133.81,0.0499379]
[1741529972643,0.05488399,133.84,133.81,0.0499379]
[1741529972844,0.05488399,133.84,133.82,33.72763013]
[1741529973047,35.7489,133.89,133.82,33.72763013]
[1741529973440,35.7489,133.89,133.84,7.4728]
[1741529973645,9.5394,133.89,133.84,7.4728]
[1741529973852,2.0689,133.89,133.82,33.72763013]
[1741529974340,0.05116486,133.87,133.84,0.05027023]
[1741529974544,0.05116486,133.87,133.86,7.4718]
[1741529975752,33.68,133.92,133.89,7.4697]
[1741529975944,33.68,133.92,133.85,33.72763013]
[1741529975945,33.68,133.92,133.85,67.40763013]
[1741529976244,33.68,133.94,133.85,67.40763013]
[1741529976843,9.5254,133.96,133.91,7.469]
[1741529977043,43.2054,133.96,133.9,224.14]
[1741529977244,0.05544936,133.95,133.92,0.05532105]
[1741529978252,0.05544936,133.95,133.83,224.14]
[1741529978451,33.72763013,133.93,133.83,224.14]
[1741529978652,7.4691,133.91,133.85,7.4719]
[1741529978843,33.68,133.92,133.84,33.72763013]
[1741529979249,41.1489,133.92,133.85,7.4721]
[1741529979542,0.05468154,133.89,133.87,0.04785403]
[1741529979743,35.7191,133.96,133.87,67.38763013]
[1741529980053,35.7191,133.96,133.84,67.38763013]
[1741529980247,7.4681,133.93,133.87,7.4709]
[1741529980545,35.7191,133.96,133.87,7.4709]
[1741529980751,7.51727985,133.93,133.9,0.05463949]
[1741529980952,0.04887985,133.93,133.9,0.05463949]
[1741529981452,7.4685,133.92,133.9,0.05463949]
[1741529981650,0.04887985,133.93,133.9,0.05463949]
[1741529982344,33.66,133.92,133.9,0.05463949]
[1741529982544,33.66,133.92,133.84,33.72763013]
[1741529982752,33.66,133.92,133.81,35.64173013]
[1741529982947,35.6344,133.92,133.81,35.64173013]
[1741529983148,35.6344,133.92,133.81,1.9141]
[1741529983750,0.04901122,133.88,133.85,0.05228478]
[1741529983945,33.66,133.87,133.85,0.05228478]
[1741529984452,33.66,133.87,133.79,224.1]
[1741529985153,7.4735,133.83,133.79,224.1]
[1741529985858,0.04994503,133.82,133.8,0.05268594]
[1741529986059,2.059,133.86,133.8,0.05268594]
[1741529986249,0.05226173,133.82,133.8,0.05268594]
[1741529986450,0.05226173,133.82,133.8,33.78031607]
[1741529987454,0.05226173,133.82,133.8,0.05268594]
[1741529989353,0.05226173,133.82,133.8,7.52768594]
[1741529989857,0.05226173,133.82,133.8,0.05268594]
[1741529991059,0.05226173,133.82,133.8,7.52778594]
[1741529991258,0.05226173,133.82,133.8,0.05268594]
[1741529991559,0.05226173,133.82,133.8,7.52748594]
[1741529991762,0.05226173,133.82,133.8,0.05268594]
[1741529991957,1.9674,133.89,133.81,33.66]
[1741529992550,7.4708,133.88,133.81,33.66]
[1741529992756,1.9674,133.89,133.83,7.4731]
[1741529993152,0.05316143,133.87,133.85,0.04831693]
[1741529995660,7.4718,133.86,133.85,0.04831693]
[1741529995857,0.05316143,133.87,133.85,0.04831693]
[1741529996261,7.52456143,133.87,133.85,0.04831693]
[1741529997465,7.4718,133.86,133.85,0.04831693]
[1741529999064,7.4726,133.85,133.8,41.20253013]
[1741529999261,33.64,133.86,133.8,33.72763013]
[1741529999766,41.1121,133.86,133.81,7.4743]
[1741530000163,0.05540572,133.85,133.82,0.0514218]
[1741530000563,7.52780572,133.85,133.82,0.0514218]
[1741530003168,0.05540572,133.85,133.83,67.36763013]
[1741530003468,193.0,133.92,133.83,69.25323013]
[1741530003772,193.0,133.92,133.87,7.4709]
[1741530003963,35.6761,133.94,133.83,71.29903013]
[1741530004163,7.4698,133.9,133.86,7.4714]
[1741530004673,0.0515703,133.89,133.87,0.04922053]
[1741530005065,0.0515703,133.89,133.88,224.16]
[1741530005366,0.0515703,133.89,133.88,231.6307]
[1741530006159,1.9137,133.97,133.88,224.16]
[1741530006470,3.8302,133.97,133.88,224.16]
[1741530006667,33.72763013,133.95,133.88,224.16]
[1741530006871,7.4699,133.9,133.88,224.16]
[1741530007067,33.64,133.94,133.88,224.16]
[1741530007374,7.52297289,133.9,133.88,224.21408724]
[1741530007565,0.05297289,133.9,133.88,224.21408724]
[1741530009277,33.64,133.96,133.88,224.21408724]
[1741530009472,33.64,133.96,133.88,224.16]
[1741530009672,7.4677,133.94,133.88,224.16]
[1741530010273,7.467,133.95,133.88,224.16]
[1741530010477,0.05648413,133.92,133.9,0.04961699]
[1741530011372,7.469,133.91,133.9,0.04961699]
[1741530011577,33.67648413,133.92,133.9,0.04961699]
[1741530011879,7.4711,133.88,133.83,9.5192]
[1741530012174,1.9968,133.91,133.83,2.0458]
[1741530012381,41.0886,133.92,133.87,7.4709]
[1741530012576,33.62,133.92,133.85,33.62]
[1741530012884,7.51763129,133.9,133.87,0.05061657]
[1741530013085,0.04803129,133.9,133.87,0.05061657]
[1741530014485,0.04803129,133.9,133.87,7.52161657]
[1741530015792,0.04803129,133.9,133.87,0.05061657]
[1741530016888,7.51763129,133.9,133.87,0.05061657]
[1741530017186,0.04803129,133.9,133.87,0.05061657]
[1741530017380,0.04803129,133.9,133.82,224.14]
[1741530017580,1.92293129,133.9,133.82,224.14]
[1741530017781,7.4721,133.86,133.82,224.14]
[1741530018082,2.0421,133.89,133.82,224.14]
[1741530018584,0.05362056,133.87,133.84,0.0534979]
[1741530018886,33.67362056,133.87,133.84,0.0534979]
[1741530020683,0.05362056,133.87,133.84,0.0534979]
[1741530021089,7.52522056,133.87,133.84,0.0534979]
[1741530021886,0.05362056,133.87,133.84,0.0534979]
[1741530022092,7.4718,133.86,133.84,0.0534979]
[1741530022292,0.05362056,133.87,133.84,0.0534979]
[1741530023691,7.4723,133.85,133.84,0.0534979]
[1741530024188,0.05362056,133.87,133.8,224.1]
[1741530024488,7.4745,133.82,133.8,224.1]
[1741530025092,7.4737,133.83,133.8,224.1]
[1741530025494,7.5240016,133.83,133.8,224.1519662]
[1741530025693,7.4741,133.82,133.8,224.1519662]
[1741530025892,0.0503016,133.83,133.8,224.1519662]
[1741530026095,0.0503016,133.83,133.8,217.9200662]
[1741530026395,7.4746,133.81,133.8,0.0519662]
[1741530026596,41.0746,133.81,133.8,0.0519662]
[1741530026890,7.4766,133.78,133.73,65.23275341]
[1741530027096,33.6,133.81,133.73,65.23275341]
[1741530027496,7.4779,133.76,133.73,65.23275341]
[1741530027795,33.6,133.81,133.73,65.23275341]
[1741530028201,0.04969984,133.78,133.76,0.0483095]
[1741530028390,33.62,133.77,133.73,65.23275341]
[1741530028597,69.38373013,133.77,133.72,82.48728554]
[1741530028898,7.479,133.73,133.72,82.48728554]
[1741530029095,41.079,133.73,133.72,82.48728554]
[1741530029494,41.079,133.73,133.72,67.76518554]
[1741530029690,41.079,133.73,133.72,37.54373895]
[1741530029898,41.079,133.73,133.72,24.25423895]
[1741530030196,7.4796,133.72,133.71,0.04893458]
[1741530030393,37.34,133.73,133.66,255.24192053]
[1741530030591,7.4824,133.67,133.66,31.06192053]
[1741530032297,7.4824,133.67,133.66,27.94462053]
[1741530032501,7.4824,133.67,133.66,19.97542053]
[1741530032999,33.6676542,133.68,133.66,19.97542053]
[1741530033591,7.4824,133.67,133.66,19.97542053]
[1741530034296,7.483,133.66,133.65,0.05645642]
[1741530034896,7.4849,133.63,133.56,33.72763013]
[1741530035096,41.1049,133.63,133.56,37.67113013]
[1741530035303,41.1049,133.63,133.56,3.9435]
[1741530035602,7.4852,133.62,133.57,7.4877]
[1741530035800,33.62,133.63,133.56,3.9435]
[1741530036005,33.62,133.63,133.58,0.05520833]
[1741530036006,0.04847473,133.61,133.58,0.05520833]
[1741530037198,0.04847473,133.61,133.6,7.4863]
[1741530037402,193.0,133.68,133.59,33.72763013]
[1741530037597,33.64,133.67,133.59,33.72763013]
[1741530038503,33.64,133.67,133.57,35.5704]
[1741530038708,0.05680846,133.64,133.62,0.05602513]
[1741530038998,7.4846,133.63,133.62,0.05602513]
[1741530039206,41.1246,133.63,133.62,0.05602513]
[1741530040493,7.4867,133.6,133.56,3.9435]
[1741530040903,33.64,133.59,133.56,2.0328]
[1741530041104,33.64,133.59,133.55,224.24]
[1741530041501,7.4878,133.58,133.55,224.24]
[1741530041694,0.0488775,133.58,133.56,0.0567334]
[1741530043199,7.488,133.57,133.56,0.0567334]
[1741530048108,3.74,133.57,133.48,224.5]
[1741530048302,193.0,133.58,133.48,226.5604]
[1741530048609,193.0,133.58,133.5,7.4916]
[1741530048806,193.0,133.58,133.49,2.0034]
[1741530049207,0.04719561,133.55,133.52,0.05332695]
[1741530049409,33.68719561,133.55,133.52,0.05332695]
[1741530050907,0.04719561,133.55,133.52,0.05332695]
[1741530051107,0.04719561,133.55,133.52,69.54382695]
[1741530051408,0.04719561,133.55,133.52,0.05332695]
[1741530052511,7.4897,133.54,133.52,0.05332695]
[1741530052907,0.04719561,133.55,133.52,0.05332695]
[1741530053112,7.53649561,133.55,133.52,0.05332695]
[1741530054613,7.4901,133.54,133.52,0.05332695]
[1741530055003,0.04719561,133.55,133.52,0.05332695]
[1741530055810,7.53659561,133.55,133.52,0.05332695]
[1741530057019,7.4898,133.54,133.52,0.05332695]
[1741530057317,0.04719561,133.55,133.52,0.05332695]
[1741530058321,33.64,133.59,133.52,0.05332695]
[1741530058519,7.4884,133.57,133.53,7.49]
[1741530058722,33.64,133.59,133.53,7.49]
[1741530058916,33.64,133.59,133.5,2.0424]
[1741530059117,33.64,133.59,133.51,7.4911]
[1741530059313,0.0508112,133.56,133.53,0.05574854]
[1741530059621,7.4866,133.6,133.55,7.4888]
[1741530059915,33.64,133.62,133.55,7.4888]
[1741530060419,33.64,133.62,133.52,67.36763013]
[1741530060613,0.05555441,133.6,133.57,0.05739133]
[1741530061810,7.4874,133.58,133.57,0.05739133]
[1741530062616,0.05555441,133.6,133.57,0.05739133]
[1741530063721,7.4874,133.58,133.57,0.05739133]
[1741530064423,0.05555441,133.6,133.57,0.05739133]
[1741530065220,7.54215441,133.6,133.57,0.05739133]
[1741530065426,0.05555441,133.6,133.57,0.05739133]
[1741530066614,7.487,133.59,133.57,0.05739133]
[1741530067014,0.05555441,133.6,133.57,0.05739133]
[1741530067724,7.54225441,133.6,133.57,0.05739133]
[1741530067918,0.05555441,133.6,133.57,0.05739133]
[1741530068319,7.4874,133.58,133.57,0.05739133]
[1741530068919,7.4872,133.59,133.57,0.05739133]
[1741530069125,0.05555441,133.6,133.57,0.05739133]
[1741530069621,7.4874,133.58,133.57,0.05739133]
[1741530069825,41.1074,133.58,133.57,0.05739133]
[1741530070215,7.4874,133.58,133.57,0.05739133]
[1741530070419,0.05555441,133.6,133.57,0.05739133]
[1741530071020,7.4872,133.59,133.57,0.05739133]
[1741530071525,7.4874,133.58,133.57,0.05739133]
[1741530071827,0.05555441,133.6,133.57,0.05739133]
[1741530073922,7.4874,133.58,133.57,0.05739133]
[1741530074123,0.05555441,133.6,133.57,0.05739133]
[1741530075032,7.4874,133.58,133.57,0.05739133]
[1741530081335,0.05555441,133.6,133.57,0.05739133]
[1741530081534,7.4871,133.59,133.57,0.05739133]
[1741530081734,0.05555441,133.6,133.57,0.05739133]
[1741530081935,33.78318454,133.6,133.57,0.05739133]
[1741530082336,0.05555441,133.6,133.57,0.05739133]
[1741530082935,7.54225441,133.6,133.57,0.05739133]
[1741530083640,0.05555441,133.6,133.57,0.05739133]
[1741530084735,7.4874,133.58,133.57,0.05739133]
[1741530085434,7.4874,133.58,133.57,9.133e-05]
[1741530085932,21.1948205,133.56,133.52,1.9443]
[1741530086133,54.7748205,133.56,133.52,1.9443]
[1741530086332,21.1948205,133.54,133.47,226.6915]
[1741530086538,54.7748205,133.56,133.48,3.8987]
[1741530086839,54.7748205,133.56,133.48,11.3914]
[1741530087032,0.05095385,133.53,133.51,0.05744241]
[1741530090036,33.58,133.56,133.51,0.05744241]
[1741530090237,21.1948205,133.6,133.51,21.25226291]
[1741530090433,7.4872,133.59,133.55,7.4887]
[1741530090637,10.16658671,133.62,133.57,21.1948205]
[1741530090839,107.957801,133.63,133.59,21.1948205]
[1741530091035,98.598101,133.63,133.62,7.4852]
[1741530091235,19.016101,133.63,133.62,41.0652]
[1741530091436,19.016101,133.63,133.6,0.05327061]
[1741530091640,26.501201,133.63,133.6,0.05327061]
[1741530091942,19.016101,133.63,133.6,0.05327061]
[1741530092141,120.79903341,133.64,133.6,0.05327061]
[1741530093846,120.79903341,133.64,133.62,7.4852]
[1741530094148,0.05507597,133.64,133.6,0.05327061]
[1741530094546,0.05507597,133.64,133.63,7.4846]
[1741530095140,0.05507597,133.64,133.62,7.485]
[1741530095441,0.05507597,133.64,133.6,0.05327061]
[1741530096939,33.61507597,133.64,133.6,0.05327061]
[1741530097150,7.4848,133.63,133.6,0.05327061]
[1741530097649,33.61507597,133.64,133.6,0.05327061]
[1741530098345,0.05507597,133.64,133.6,0.05327061]
[1741530098742,0.05507597,133.64,133.63,7.4846]
[1741530098945,0.05507597,133.64,133.63,232.0846]
[1741530099353,7.597e-05,133.64,133.63,235.8246]
[1741530099556,1.8951,133.72,133.63,228.34]
[1741530099756,71.38870642,133.75,133.65,33.88870642]
[1741530099956,73.43400642,133.75,133.66,33.54]
[1741530100258,73.43400642,133.75,133.63,224.6]
[1741530100457,73.43400642,133.75,133.63,258.14]
[1741530100458,33.88870642,133.72,133.63,258.14]
[1741530100659,0.0555959,133.7,133.68,0.0542374]
[1741530100850,0.0555959,133.7,133.63,258.14]
[1741530101362,33.88870642,133.69,133.63,224.6]
[1741530101558,33.88870642,133.66,133.57,224.58]
[1741530101758,33.54,133.65,133.57,224.58]
[1741530101954,0.05085881,133.63,133.6,0.05426027]
[1741530104762,7.53605881,133.63,133.6,0.05426027]
[1741530105451,0.05085881,133.63,133.6,0.05426027]
[1741530106157,7.53595881,133.63,133.6,0.05426027]
[1741530107460,0.05085881,133.63,133.6,0.05426027]
[1741530107660,33.93956523,133.63,133.55,224.56]
[1741530108059,4.0763,133.62,133.55,224.56]
[1741530108262,33.52,133.61,133.55,224.56]
[1741530108862,0.05687187,133.59,133.57,0.05647428]
[1741530109361,7.4878,133.58,133.57,0.05647428]
[1741530109561,0.05687187,133.59,133.55,224.56]
[1741530109761,7.4893,133.55,133.49,224.56]
[1741530109956,7.4893,133.55,133.49,232.0519]
[1741530110160,41.0081,133.57,133.49,224.56]
[1741530110557,41.0081,133.57,133.51,7.4911]
[1741530110964,0.0561589,133.54,133.52,0.05246279]
[1741530112657,7.5462589,133.54,133.52,0.05246279]
[1741530113666,7.4903,133.53,133.52,0.05246279]
[1741530113863,41.0103,133.53,133.52,0.05246279]
[1741530114263,33.52,133.53,133.52,0.05246279]
[1741530115462,41.0103,133.53,133.52,0.05246279]
[1741530116266,0.0561589,133.54,133.52,0.05246279]
[1741530116666,0.0561589,133.54,133.53,7.4903]
[1741530117672,0.0561589,133.54,133.52,0.05246279]
[1741530117872,0.0561589,133.54,133.52,7.54306279]
[1741530118075,0.0561589,133.54,133.52,0.05246279]
[1741530119073,0.0561589,133.54,133.53,7.4903]
[1741530119973,0.0561589,133.54,133.53,40.9903]
[1741530121576,0.0561589,133.54,133.53,33.5]
[1741530122279,0.0561589,133.54,133.52,7.54316279]
[1741530122672,0.0561589,133.54,133.52,0.05246279]
[1741530124875,7.5462589,133.54,133.52,0.05246279]
[1741530125376,0.0561589,133.54,133.52,224.71246279]
[1741530131278,7.5459589,133.54,133.52,224.71246279]
[1741530131476,0.0561589,133.54,133.52,224.71246279]
[1741530131675,7.4903,133.53,133.52,224.71246279]
[1741530132574,0.0561589,133.54,133.46,7.4939]
[1741530132876,1.9829,133.55,133.46,232.1739]
[1741530133077,1.9829,133.55,133.46,224.68]
[1741530133677,0.05763864,133.52,133.48,7.4927]
[1741530133878,0.05763864,133.52,133.49,33.48]
[1741530134282,0.05763864,133.52,133.49,33.6455]
[1741530134679,0.05763864,133.52,133.51,7.4914]
[1741530135679,0.05763864,133.52,133.51,69.4914]
[1741530137182,0.05763864,133.52,133.5,7.4919]
[1741530137880,0.05763864,133.52,133.49,35.6481]
[1741530138182,0.05763864,133.52,133.51,224.68]
[1741530138576,0.05763864,133.52,133.51,232.1714]
[1741530139375,0.05763864,133.52,133.51,224.68]
[1741530140682,7.54873864,133.52,133.47,7.4934]
[1741530140884,33.46,133.51,133.45,10.39742652]
[1741530141085,35.518,133.51,133.45,10.39742652]
[1741530141681,33.88870642,133.49,133.43,224.68]
[1741530142278,0.05600287,133.47,133.43,224.68]
[1741530142475,33.51600287,133.47,133.43,224.68]
[1741530142675,0.05600287,133.47,133.43,224.68]
[1741530142883,0.05600287,133.47,133.43,258.14]
[1741530143083,0.05600287,133.47,133.46,7.4942]
[1741530143281,35.5293,133.55,133.45,33.88870642]
[1741530143485,35.5293,133.55,133.44,5.9889]
[1741530143781,7.491,133.52,133.44,5.9889]
[1741530143980,35.5293,133.55,133.44,5.9889]
[1741530144584,0.05376436,133.51,133.48,0.04912633]
[1741530145084,0.05376436,133.51,133.5,7.4919]
[1741530145284,1.9286,133.57,133.48,0.04912633]
[1741530145481,1.9286,133.57,133.47,67.34870642]
[1741530145686,1.9286,133.57,133.52,7.4905]
[1741530146080,9.4171,133.57,133.52,7.4905]
[1741530146588,0.04993282,133.56,133.53,0.05305533]
[1741530148489,7.53893282,133.56,133.53,0.05305533]
[1741530149588,0.04993282,133.56,133.53,0.05305533]
[1741530149788,7.4893,133.55,133.53,0.05305533]
[1741530150185,0.04993282,133.56,133.53,0.05305533]
[1741530150489,7.4897,133.54,133.53,0.05305533]
[1741530150684,33.44,133.55,133.46,33.44]
[1741530150891,7.4917,133.51,133.46,40.9338]
[1741530151089,7.4917,133.51,133.44,39.87760642]
[1741530151291,33.88870642,133.53,133.44,39.4289]
[1741530151487,2.0407,133.52,133.43,232.1757]
[1741530151695,33.88870642,133.5,133.43,224.68]
[1741530151992,1.95233502,133.49,133.46,0.04813968]
[1741530152194,7.4935,133.48,133.46,0.04813968]
[1741530152394,1.95233502,133.49,133.46,0.04813968]
[1741530152992,0.05373502,133.49,133.46,0.04813968]
[1741530153691,7.4931,133.48,133.46,0.04813968]
[1741530154688,7.4936,133.47,133.46,0.04813968]
[1741530155085,1.92913502,133.49,133.46,0.04813968]
[1741530155285,7.4936,133.47,133.46,0.04813968]
[1741530157792,40.9336,133.47,133.46,0.04813968]
[1741530158596,7.4953,133.44,133.4,7.4974]
[1741530158997,7.4953,133.44,133.37,224.76]
[1741530159197,7.495,133.45,133.39,7.4976]
[1741530159403,67.32870642,133.47,133.39,7.4976]
[1741530159604,7.4968,133.42,133.37,232.2592]
[1741530160104,0.05477988,133.41,133.37,232.2592]
[1741530160801,7.55187988,133.41,133.37,232.2592]
[1741530161005,0.05477988,133.41,133.37,232.2592]
[1741530161309,7.4976,133.4,133.37,224.76]
[1741530161599,0.05477988,133.41,133.37,224.76]
[1741530161804,7.55197988,133.41,133.37,224.76]
[1741530163295,0.05477988,133.41,133.37,224.76]
[1741530163695,33.9434863,133.41,133.31,224.82]
[1741530163907,33.88870642,133.41,133.31,224.82]
[1741530164208,0.05167509,133.37,133.31,258.24]
[1741530164504,0.05167509,133.37,133.33,7.5013]
[1741530164805,0.05167509,133.37,133.31,258.24]
[1741530165099,0.05167509,133.37,133.34,7.5005]
[1741530165305,0.05167509,133.37,133.32,62.0]
[1741530165702,7.5001,133.36,133.31,232.3224]
[1741530166106,0.05167509,133.37,133.31,232.3226]
[1741530166805,7.501,133.34,133.29,1.9315]
[1741530167300,0.0529632,133.33,133.28,41.58970608]
[1741530167499,0.0529632,133.33,133.29,7.5035]
[1741530167905,0.0529632,133.33,133.28,41.58970608]
[1741530168207,33.88870642,133.32,133.28,41.58970608]
[1741530168405,37.3301,133.31,133.28,41.58970608]
[1741530169510,37.3301,133.31,133.28,38.47050608]
[1741530169710,7.5037,133.29,133.28,5.83700608]
[1741530170601,7.5043,133.28,133.27,83.17941218]
[1741530170913,33.88870642,133.29,133.2,7.5084]
[1741530171110,0.05173379,133.3,133.19,153.47398526]
[1741530171315,37.3301,133.31,133.23,232.3867]
[1741530171608,0.05135903,133.28,133.23,232.3867]
[1741530171807,0.05135903,133.28,133.23,224.88]
[1741530172004,0.05135903,133.28,133.24,67.32870642]
[1741530172209,0.05135903,133.28,133.23,224.88]
[1741530173411,0.05135903,133.28,133.25,7.5059]
[1741530173612,33.44,133.31,133.24,67.32870642]
[1741530174111,40.943,133.31,133.25,4.0742]
[1741530174313,33.44,133.31,133.25,4.0742]
[1741530174511,33.44,133.35,133.27,33.88870642]
[1741530174712,7.5004,133.35,133.31,7.5026]
[1741530175008,7.5004,133.35,133.28,33.44]
[1741530175208,7.5016,133.33,133.28,33.44]
[1741530175403,0.05258358,133.34,133.3,0.05128801]
[1741530175815,0.05258358,133.34,133.31,225.04]
[1741530176004,33.44,133.39,133.32,3.877]
[1741530176203,33.44,133.39,133.32,11.3787]
[1741530176614,7.4997,133.37,133.33,7.5015]
[1741530176810,33.44,133.39,133.32,3.877]
[1741530177109,35.94190642,133.42,133.32,3.877]
[1741530177311,0.05567605,133.37,133.34,0.0486437]
[1741530178908,7.55537605,133.37,133.34,0.0486437]
[1741530179115,0.05567605,133.37,133.34,0.0486437]
[1741530180017,7.5004,133.35,133.34,0.0486437]
[1741530182212,0.05567605,133.37,133.34,0.0486437]
[1741530182411,0.05567605,133.37,133.35,7.4999]
[1741530182612,33.42,133.41,133.34,0.0486437]
[1741530182918,7.4983,133.39,133.34,0.0486437]
[1741530183314,7.4983,133.39,133.34,7.5492437]
[1741530183712,7.4985,133.39,133.35,7.5]
[1741530183910,0.04860723,133.38,133.34,0.0486437]
[1741530184322,0.04860723,133.38,133.37,7.4992]
[1741530185521,0.04860723,133.38,133.35,1.9821]
[1741530185715,0.04860723,133.38,133.36,7.4996]
[1741530185911,78.0,133.54,133.36,67.28870642]
[1741530186113,33.4,133.46,133.36,67.28870642]
[1741530186315,3.924,133.5,133.39,33.88870642]
[1741530186517,33.88870642,133.52,133.4,260.2838]
[1741530186716,33.88870642,133.52,133.43,7.4957]
[1741530186916,33.4,133.51,133.4,260.2838]
[1741530187121,0.05189354,133.49,133.46,0.0559159]
[1741530187316,7.4941,133.47,133.46,0.0559159]
[1741530187725,0.05189354,133.49,133.46,0.0559159]
[1741530187929,7.4935,133.48,133.46,0.0559159]
[1741530188131,0.05189354,133.49,133.46,0.0559159]
[1741530188430,7.4936,133.47,133.46,0.0559159]
[1741530189026,7.4932,133.48,133.46,0.0559159]
[1741530189229,0.05189354,133.49,133.46,0.0559159]
[1741530189727,33.38,133.52,133.47,7.4936]
[1741530189928,33.38,133.52,133.47,1.9597]
[1741530190319,33.88870642,133.56,133.48,224.94]
[1741530190535,33.38,133.56,133.49,1.8939]
[1741530190729,33.38,133.57,133.49,1.8939]
[1741530191030,0.05295487,133.54,133.51,0.05118526]
[1741530191333,7.4913,133.52,133.51,0.05118526]
[1741530191627,67.26870642,133.53,133.42,224.94]
[1741530191933,67.26870642,133.53,133.44,3.8536]
[1741530192135,7.4937,133.47,133.44,3.8536]
[1741530192526,33.38,133.49,133.44,3.8536]
[1741530192725,0.0492586,133.47,133.44,3.90883502]
[1741530192929,33.38,133.52,133.44,2.01493502]
[1741530193124,7.4916,133.51,133.45,1.8745]
[1741530193337,33.36,133.55,133.45,69.14320642]
[1741530193532,241.85880642,133.63,133.45,69.14320642]
[1741530193533,7.4887,133.56,133.51,7.4908]
[1741530193737,7.4887,133.56,133.52,3.8045]
[1741530193933,33.36,133.58,133.52,3.8045]
[1741530194234,0.05474202,133.55,133.53,0.05061362]
[1741530194633,7.4897,133.54,133.53,0.05061362]
[1741530195032,0.05474202,133.55,133.53,0.05061362]
[1741530195236,7.4897,133.54,133.53,0.05061362]
[1741530195735,74.73840642,133.54,133.53,0.05061362]
[1741530195941,67.24870642,133.54,133.45,33.36]
[1741530197238,0.04758824,133.51,133.48,0.05753146]
[1741530197839,7.4925,133.49,133.48,0.05753146]
[1741530199938,33.34,133.5,133.48,0.05753146]
[1741530201238,0.04758824,133.51,133.48,0.05753146]
[1741530201435,67.22870642,133.56,133.48,0.05753146]
[1741530201645,7.4903,133.53,133.48,7.55013146]
[1741530201939,7.4903,133.53,133.48,0.05753146]
[1741530202128,7.4901,133.54,133.5,7.4916]
[1741530202329,33.34,133.56,133.48,33.88870642]
[1741530202529,0.05498413,133.53,133.51,0.05641236]
[1741530203331,7.4908,133.52,133.51,0.05641236]
[1741530203938,7.54538413,133.53,133.51,0.05641236]
[1741530204137,0.05498413,133.53,133.51,0.05641236]
[1741530204640,0.05498413,133.53,133.51,1.94151236]
[1741530205036,7.4908,133.52,133.51,1.94151236]
[1741530205236,4.3723,133.52,133.51,1.94151236]
[1741530206043,7.4893,133.55,133.52,7.4908]
[1741530206239,34.09230642,133.62,133.52,224.78]
[1741530206438,7.4878,133.58,133.52,224.78]
[1741530206632,33.32,133.61,133.52,224.78]
[1741530207039,7.4878,133.58,133.52,224.78]
[1741530207344,7.53528425,133.58,133.55,0.05224657]
[1741530207843,0.04748425,133.58,133.55,7.54104657]
[1741530208745,33.32,133.63,133.55,0.05224657]
[1741530208945,33.32,133.63,133.56,1.9623]
[1741530209841,0.05147335,133.61,133.58,0.04960798]
[1741530210644,7.4869,133.59,133.58,0.04960798]
[1741530212445,40.7869,133.59,133.58,0.04960798]
[1741530212947,67.18870642,133.59,133.52,226.8321]